Cogmind - Beta 13 @@@ ROGUE MODE // 2024.04.21 @ 16:45:05 Player: Bross Result: Self-destructed Performance ------------- Evolutions (1) 500 Regions Visited (3) 600 Robots Destroyed (26) 130 Value Destroyed (735) 735 Prototype IDs (0) 0 Alien Tech Used (0) 0 Bonus (0) 0 TOTAL SCORE: 1965 Bonus ------- None Cogmind --------- Core Integrity 89/400 Matter 223/300 Energy 160/160 System Corruption 30% Temperature Cool (0) Movement Walking (120) Location -9/Storage Parts ------- > --- POWER (1) -------- Light Nuclear Core > --- PROPULSION (4) --- Aluminum Leg Aluminum Leg Aluminum Leg > --- UTILITY (2) ------ Improved Heat Sink Medium Storage Unit > --- WEAPON (2) ------- Beam Rifle Autogun > --- INVENTORY (10) --- Wheel Sensor Array Signal Interpreter Hardened Light Armor Plating Hardened Light Armor Plating Particle Cannon Shotgun EMP Blaster Peak State ------------ > --- POWER ------------ Light Nuclear Core > --- PROPULSION ------- Improved Treads Aluminum Leg Aluminum Leg Wheel > --- UTILITY ---------- Medium Storage Unit Hardened Light Armor Plating > --- WEAPON ----------- EM Pulse Gun Autogun > --- INVENTORY -------- Improved Heat Sink Improved Heat Sink Sensor Array Signal Interpreter Hardened Light Armor Plating Hardened Light Armor Plating Beam Rifle Particle Cannon Autogun EMP Blaster [Rating: 16] Favorites ----------- Power Light Ion Engine Engine Light Ion Engine Power Core Light Nuclear Core Propulsion Aluminum Leg Treads Improved Treads Leg Aluminum Leg Wheel Wheel Utility Medium Storage Unit Device Sensor Array Storage Medium Storage Unit Processor Signal Interpreter Protection Hardened Light Armor Plating Weapon Autogun Energy Gun EM Pulse Gun Ballistic Gun Autogun Build | -11 -10 -9 -9 ------- Run | Yrd Mat Mat Sto Slots Evolved 2 | . . 2 . Power . | . . . . Propulsion 2 | . . 2 . Utility . | . . . . Weapon . | . . . . Parts Attached 25 | 6 4 14 1 Power 3 | 1 . 2 . Engine 2 | 1 . 1 . Core 1 | . . 1 . Reactor . | . . . . Propulsion 7 | 2 . 5 . Treads 1 | . . 1 . Leg 5 | 2 . 3 . Wheel 1 | . . 1 . Hover . | . . . . Flight . | . . . . Utility 10 | 1 3 5 1 Device 4 | . 1 2 1 Storage 2 | 1 1 . . Processor 1 | . 1 . . Hackware . | . . . . Protection 3 | . . 3 . Artifact . | . . . . Weapon 5 | 2 1 2 . Energy Gun 3 | 2 . 1 . Energy Cannon . | . . . . Ballistic Gun 2 | . 1 1 . Ballistic Cannon . | . . . . Launcher . | . . . . Special Weapon . | . . . . Impact Weapon . | . . . . Slashing Weapon . | . . . . Piercing Weapon . | . . . . Special Melee Weapon . | . . . . Unidentified Prototypes . | . . . . Corrupted Parts 3 | . . 3 . System Corruption 29 | . . 29 . Parts Lost 3 | . . 2 1 Power . | . . . . Propulsion 2 | . . 1 1 Utility . | . . . . Weapon 1 | . . 1 . Highest Loss Streak 2 | . . 2 1 To Critical Strikes . | . . . . Average Slot Usage (%) 87 | . 97 81 97 Engine 7 | . 14 6 . Core 3 | . . 4 11 Treads 1 | . . 3 . Leg 24 | . 28 19 41 Wheel 2 | . . 4 . Device 7 | . 7 8 1 Storage 11 | . 14 11 11 Processor 1 | . 5 . . Protection 2 | . . 2 9 Energy Gun 11 | . 14 11 11 Ballistic Gun 11 | . 13 11 11 Naked Turns . | . . . . Heaviest Build 26 | 12 19 26 26 Greatest Support 30 | 20 20 30 30 Greatest Overweight (x) 2 | 2 . 2 . Average Overweight (x) . | . . . . Largest Inventory Capacity 10 | 8 10 10 10 Average Capacity 9 | 7 8 10 10 Most Carried 10 | 4 9 10 8 Average Carried 8 | 3 7 9 8 Final Capacity 10 | 8 10 10 10 Final Carried 9 | 4 9 8 8 Class Distribution -------------------- 87% | Mutant 12% | Scavenger-Mutant Dominant Class ---------------- Mutant | -10/Materials Mutant | -9/Materials Scavenger-Mutant | -9/Storage Resources | -11 -10 -9 -9 ----------- Run | Yrd Mat Mat Sto Matter Collected 575 | 210 94 256 15 Remotely . | . . . . Salvage Created 938 | . 98 659 181 Parts 55 | . 6 38 11 Haulers Intercepted . | . . . . Recyclers Shooed 2 | . 2 . . Parts Field Recycled . | . . . . Retrieved Matter . | . . . . Parts Self-Destructed . | . . . . Prevented . | . . . . Kills | -11 -10 -9 -9 ------- Run | Yrd Mat Mat Sto Combat Hostiles Destroyed 18 | . 2 13 3 Guns 16 | . 2 11 3 AOE 2 | . . 2 . Classes Destroyed 7 | . 2 5 . Worker 3 | . . 2 1 Builder 1 | . . 1 . Mechanic 1 | . . 1 . Watcher 3 | . 1 1 1 Swarmer 2 | . . 2 . Grunt 13 | . 2 8 3 Sentry 3 | . . 3 . Best Kill Streak 9 | . 2 9 4 Combat Bots Only 6 | . 2 6 3 Max Kills in Single Turn 4 | . 1 4 1 Gunslinging . | . . . . Exploded 1 | . . 1 . Melee . | . . . . Uniques/NPCs Destroyed . | . . . . Combat | -11 -10 -9 -9 -------- Run | Yrd Mat Mat Sto Hostile Shots Fired 101 | . 8 68 25 Missed 25 | . 1 20 4 Damage Taken 1091 | . 89 765 237 Core 341 | . 30 278 33 Absorbed by Shields . | . . . . Core Remaining (%) 94 | 100 88 . . Volleys Fired 58 | . 11 34 13 Largest 2 | . 2 2 2 Hottest 79 | . 63 79 79 Shots Fired 110 | . 17 68 25 Gun 110 | . 17 68 25 Cannon . | . . . . Launcher . | . . . . Special . | . . . . Kinetic 53 | . 6 34 13 Thermal 15 | . . 3 12 Explosive . | . . . . Electromagnetic 42 | . 11 31 . Robot Hit Streak 10 | . 7 10 9 Robot Miss Streak 3 | . 3 3 2 Penetration Max . | . . . . Secondary Targets 2 | . 1 1 . Max Gunslinging Chain 1 | . 1 1 . Shots Hit Robots 77 | . 11 48 18 Core Hits 41 | . 7 27 7 Critical Kills . | . . . . Critical Parts Destroyed . | . . . . Critical Strikes 1 | . . . 1 Burn 1 | . . . 1 Melee Attacks . | . . . . Impact . | . . . . Slashing . | . . . . Piercing . | . . . . Sneak Attacks . | . . . . Combat Hostiles . | . . . . Follow-up Attacks . | . . . . Damage Inflicted 1357 | . 156 917 284 Guns 1120 | . 156 680 284 Cannons . | . . . . Explosions 237 | . . 237 . Melee . | . . . . Ramming . | . . . . Kinetic 575 | . 70 382 123 Thermal 290 | . . 129 161 Explosive . | . . . . Electromagnetic 492 | . 86 406 . Impact . | . . . . Slashing . | . . . . Piercing . | . . . . Highest Corruption 30 | . . 30 30 Average Corruption 13 | . . 1 30 Corruption Purged . | . . . . Corruption Blocked . | . . . . Effects 10 | . . 2 8 Message Errors 2 | . . . 2 Matter Fused 1 | . . . 1 Energy Discharges 1 | . . 1 . Data Loss (minor) 1 | . . 1 . Data Loss (major) 2 | . . . 2 Alerts 1 | . . . 1 Misdirections 1 | . . . 1 Weapon Failures 1 | . . . 1 Overload Shots . | . . . . Overflow Damage 6 | . . 6 . Projectiles . | . . . . Explosions 6 | . . 6 . Melee . | . . . . Knockbacks . | . . . . Impact . | . . . . Kinetic . | . . . . Secondary . | . . . . Self-Inflicted Damage 91 | . . 91 . Shots 4 | . . 4 . Rammed . | . . . . Targets Rammed . | . . . . Kicked . | . . . . Crushed . | . . . . Highest Temperature 228 | . 81 137 228 Average Temperature 62 | . 41 44 121 Received Heat Transfer 426 | . 51 243 132 Siege Activations . | . . . . Robots Corrupted . | . . . . Combat Hostiles . | . . . . Parts Fried 1 | . . 1 . Impact Corruptions . | . . . . Robots Melted . | . . . . Combat Hostiles . | . . . . Parts Melted . | . . . . Heat Transferred 742 | . . 261 481 Parts Sabotaged . | . . . . Parts Stolen . | . . . . Parts Stripped . | . . . . Power Chain Reactions 3 | . . 3 . Alert | -11 -10 -9 -9 ------- Run | Yrd Mat Mat Sto Peak Influence 321 | . 72 321 222 Initial 135 | . . 29 135 Average 117 | . 55 150 156 Maximum Alert Level 1 | . . 1 1 Low Security (%) 79 | 100 100 65 92 Level 1 20 | . . 34 8 Level 2 . | . . . . Level 3 . | . . . . Level 4 . | . . . . Level 5 . | . . . . High Security . | . . . . Max Security . | . . . . Squads Dispatched 4 | . . 2 2 Investigation 1 | . . 1 . Extermination . | . . . . Reinforcement 3 | . . 1 2 Assault . | . . . . Garrison . | . . . . Intercept . | . . . . Searches Triggered . | . . . . Construction Impeded . | . . . . Haulers Reinforced . | . . . . Active Scanning Responses . | . . . . Cargo Convoy Interrupts . | . . . . Stealth | -11 -10 -9 -9 --------- Run | Yrd Mat Mat Sto Distress Signals 1 | . . 1 . Communications Jammed . | . . . . Distress Signals . | . . . . Times Spotted 27 | . 3 18 6 Peak Tracking Total 5 | . 2 5 3 Tactical Retreats 1 | . . 1 . Traps | -11 -10 -9 -9 ------- Run | Yrd Mat Mat Sto Traps Triggered 1 | . . 1 . Indirectly . | . . . . Trap Hack Attempts . | . . . . Triggered . | . . . . Disarmed . | . . . . Reprogrammed . | . . . . Reused . | . . . . Traps Extracted . | . . . . Installed . | . . . . Triggered . | . . . . Machines | -11 -10 -9 -9 ---------- Run | Yrd Mat Mat Sto Machines Disabled 3 | . . 3 . Max in Single Turn 2 | . . 2 . Machines Repaired . | . . . . Machines Dismantled . | . . . . Machines Sabotaged . | . . . . Overloaded Fab Kills . | . . . . Hacking | -11 -10 -9 -9 --------- Run | Yrd Mat Mat Sto Machines Accessed 4 | . 1 3 . Terminals 4 | . 1 3 . Fabricators . | . . . . Repair Stations . | . . . . Recycling Units . | . . . . Scanalyzers . | . . . . Garrison Access . | . . . . Total Hacks 5 | . 1 4 . Successful 1 | . . 1 . Failed 4 | . 1 3 . Catastrophic . | . . . . Database Lockouts . | . . . . Manual . | . . . . Terminals 5 | . 1 4 . Fabricators . | . . . . Repair Stations . | . . . . Recycling Units . | . . . . Scanalyzers . | . . . . Garrison Access . | . . . . Terminal Hacks 1 | . . 1 . Locate Traps 1 | . . 1 . Fabricator Hacks . | . . . . Repair Station Hacks . | . . . . Recycling Unit Hacks . | . . . . Scanalyzer . | . . . . Garrison Access Hacks . | . . . . Unauthorized Hacks . | . . . . Terminals . | . . . . Fabricators . | . . . . Repair Stations . | . . . . Recycling Units . | . . . . Scanalyzers . | . . . . Garrison Access . | . . . . Data Cores Recovered . | . . . . Used . | . . . . Hacking Detections 3 | . 1 2 . Full Trace Events . | . . . . Feedback Events . | . . . . Feedback Blocked . | . . . . Robot Schematics Acquired . | . . . . Robots Built . | . . . . Authchips . | . . . . Time . | . . . . Total Robot Build Rating . | . . . . Part Schematics Acquired . | . . . . Parts Built . | . . . . Authchips . | . . . . Time . | . . . . Total Part Build Rating . | . . . . Parts Repaired . | . . . . Time . | . . . . Parts Recycled . | . . . . Recycled Matter . | . . . . Retrieved Matter . | . . . . Retrieved Components . | . . . . Parts Scanalyzed . | . . . . Part Schematics Acquired . | . . . . Parts Damaged . | . . . . Bothacking | -11 -10 -9 -9 ------------ Run | Yrd Mat Mat Sto Used RIF Installer . | . . . . Robots Hacked . | . . . . Non-combat . | . . . . Combat . | . . . . Robot Hacks Applied . | . . . . Relay Couplers Released . | . . . . Fabnet Peak Effective % . | . . . . Robots Rewired . | . . . . Allies Hacked . | . . . . Hacks Repelled . | . . . . Allies | -11 -10 -9 -9 -------- Run | Yrd Mat Mat Sto Total Allies . | . . . . Largest Group . | . . . . Highest-Rated Group . | . . . . Highest-Rated Ally . | . . . . Total Orders . | . . . . Ally Attacks . | . . . . Total Damage . | . . . . Kills . | . . . . Allies Corrupted . | . . . . Allies Melted . | . . . . Intel | -11 -10 -9 -9 ------- Run | Yrd Mat Mat Sto Robot Analysis Total . | . . . . Derelict Logs Recovered . | . . . . Drone Launches . | . . . . Drone Recoveries . | . . . . Exploration | -11 -10 -9 -9 ------------- Run | Yrd Mat Mat Sto Turns Passed 1242 | 69 334 714 125 Spaces Moved 678 | 47 233 339 59 Core 9 | 9 . . . Treads 6 | . . 6 . Legs 510 | 38 233 180 59 Wheels 153 | . . 153 . Hover . | . . . . Flight . | . . . . Fastest Speed 50 | 50 120 110 120 Average Speed 121 | 121 120 122 120 Slowest Speed 240 | 190 120 240 120 Overloaded Moves . | . . . . Propulsion Burnouts . | . . . . Robots Hopped . | . . . . Cave-ins Triggered . | . . . . Exploration Rate (%) 20 | 5 27 41 9 Regions Visited 3 Branch Regions 1 Pre-discovered Areas . | . . . . Known Exits Taken . | . . . . Unknown Exits Taken 3 | 1 1 1 . Scrap Searched . | . . . . Spaces Dug . | . . . . Terrain Destroyed 2 | . . 2 . Melee . | . . . . Projectile . | . . . . AOE 2 | . . 2 . Terrain Rammed . | . . . . Walls Destroyed . | . . . . Machines Disabled . | . . . . Actions | -11 -10 -9 -9 --------- Run | Yrd Mat Mat Sto Total 993 | 56 273 575 89 Wait 198 | . 10 173 15 Move 675 | 46 232 338 59 Hop . | . . . . Pick Up 22 | 4 10 8 . Fast Attach 9 | 6 2 1 . Attach 5 | . . 5 . Detach 1 | . . 1 . Swap 11 | . 2 8 1 Drop 13 | . 6 7 . Fire 58 | . 11 34 13 Melee . | . . . . Ram 1 | . . . 1 Kick . | . . . . Crush . | . . . . Escape Stasis . | . . . . Rewire . | . . . . Trap . | . . . . Miscellaneous . | . . . . Route ------- -11/Scrapyard -10/Materials -9/Materials (discovered 2 exits: [*Min] / [*Sto]) -9/Storage History --------- Turn | Location | Event 4 | -11/Scrapyard | Discovered new exit (range 15) 70 | -11/Scrapyard | Entered Materials 290 | -10/Materials | Discovered new exit (range 5) 325 | -10/Materials | Build established: Mutant 404 | -10/Materials | Entered another Materials area 404 | -9/Materials | Evolved 2 slots: Propulsion x2 788 | -9/Materials | Core integrity fell below 50% 879 | -9/Materials | Discovered new exit (range 9) 1057 | -9/Materials | Discovered new exit (range 12) 1115 | -9/Materials | System corruption reached 10% 1118 | -9/Materials | System corruption reached 30% 1118 | -9/Materials | Entered Storage 1243 | -9/Storage | Self-destructed Last Messages --------------- 01175_ W-16 Scout destroyed. 01178_ Acquired 15 matter. 01193_ K-01 Serf collects debris. 01199_ System corrupted: Substantial component data lost. 01200_ K-01 Serf collects debris. 01212_ G-47 Trooper destroyed. 01215_ 01230_ System corrupted: Matter fused (-5). 01231_ K-01 Serf collects debris. 01233_ K-01 Serf suffers critical hit (Burn). 01233_ K-01 Serf destroyed. 01234_ K-01 Serf collects debris. 01236_ G-34 Mercenary destroyed. 01237_ K-01 Serf collects debris. Map ----- +----------------------------------------------------+ | ?????????????????????????????????????????????????? | | ?????????????????????????????????????????????????? | | ?????????????????????????????????????????????????? | | ????????????????????? ?????????????????????????? | | ????????????????????# ?????????????????????????? | | ????????????????????# ?????????????????????????? | | ????????????????????# ?????????????????????????? | | ????????????????????# #????????????????????????? | | ????????????????????# #????????????????????????? | | ????????????????????# #????????????????????????? | | ????????????????????# #????????????????????????? | | ????????????????????# #????????????????????????? | | ????????????????????# #????????????????????????? | | ????????????????????# #????????????????????????? | | ????????????????????# #????????????????????????? | | ####????????????????# #????????????????????????? | | ???????????????# #????????????????????????? | | ? ??????????????# #????????????????????????? | | ??# ]]?????????????# #????????????????????????? | | ??# ]/?????????????# #????????????????????????? | | ??# ]/ ????????????#! #????????????????????????? | | ??# ???????????# = #????????????????????????? | | ??? ??????????# #????????????????????????? | | ??????# ########### !##############???????????? | | ??????# a k!%* #???????????? | | ??????# %=[@ #???????????? | | ??????# =*% #???????????? | | ??????################################???????????? | | ?????????????????????????????????????????????????? | | ?????????????????????????????????????????????????? | | ?????????????????????????????????????????????????? | | | | | | | | | | | | | | | | | | | | | | | | | | | | | | | | | | | | | | | +----------------------------------------------------+ Best States ------------- Heat Dissipation 42 Energy Generation 14 Energy Capacity 160 Matter Stores 300 Matter Capacity 300 Sight Range 16 Robot Scan Range 14 Terrain Scan Density 10 Armor Coverage 150 Evasion (%) 55 Recoil Reduction 1 Item Schematics ----------------- None Robot Schematics ------------------ None Fabricated ------------ Nothing Alien Tech Used ----------------- None Achievements -------------- None Challenges ------------ None Game ------ Seed NetworkSupersonicShielding Manual? 0 Play Time 00:21:46 Cumulative 22.6 hours Start 2024.04.21 @ 16:00:54 End 2024.04.21 @ 16:45:05 Sessions 1 Manual Loads 0 Difficulty Rogue Special Mode None Game No. 15 Rogue 15 Adventurer 0 Explorer 0 Win Type - Total 0 Types 0/0/0/0/0/0/0/0/0 Lore% 12 Gallery% 22 Achievement% 17 Wizard Run 0 Options --------- Layout 1 ASCII 0 Keyboard 0 Movement Numpad Keybinds 0 Fullscreen 1 Font 48/Smallcaps Map View 50x35 Zoom Use 0% Tactical HUD 1 Map Filters NONE Filters NONE Steam 1 RUN: 73ce8e8a-b466-4344-abeb-1034f65ac77e